bitfinex/quotes_BTCUSD_20230906
["timestamp","ask_amount","ask_price","bid_price","bid_amount"]
[1694011677122,0.0391387,25640.0,25638.0,2.27946644]
[1694011677303,0.0391387,25640.0,25638.0,2.43560744]
[1694011677546,0.0197,25641.0,25639.0,1.16320541]
[1694011677759,0.0197,25641.0,25640.0,2.363093]
[1694011677760,0.0207,25641.0,25640.0,2.363093]
[1694011677969,0.0207,25641.0,25640.0,3.04973827]
[1694011678166,0.0207,25641.0,25640.0,3.11897827]
[1694011678286,0.0207,25641.0,25640.0,4.28571454]
[1694011678513,0.0197,25641.0,25640.0,4.28535454]
[1694011678704,0.0197,25641.0,25640.0,4.28643454]
[1694011679117,0.0197,25641.0,25640.0,4.29177454]
[1694011679322,0.0197,25641.0,25640.0,4.29111454]
[1694011679533,0.08416041,25641.0,25640.0,4.29189454]
[1694011679737,0.08416041,25641.0,25640.0,2.26970727]
[1694011680372,0.05473443,25641.0,25640.0,0.68664527]
[1694011680579,0.05473443,25641.0,25640.0,1.46677627]
[1694011680580,0.10734856,25641.0,25640.0,1.46677627]
[1694011680792,0.10734856,25641.0,25640.0,3.02683827]
[1694011681619,0.10734856,25641.0,25640.0,4.51189428]
[1694011681620,0.05473443,25641.0,25640.0,4.51189428]
[1694011681827,0.05473443,25641.0,25640.0,4.98056487]
[1694011681828,0.0207,25641.0,25640.0,4.98056487]
[1694011682049,0.0207,25641.0,25640.0,4.97888487]
[1694011682260,0.0207,25641.0,25640.0,4.97990487]
[1694011682466,0.0207,25641.0,25640.0,4.98050487]
[1694011682675,0.0207,25641.0,25640.0,4.97174487]
[1694011682879,0.0217,25641.0,25640.0,4.98904487]
[1694011683084,0.0217,25641.0,25640.0,4.98796487]
[1694011683327,0.0207,25641.0,25640.0,4.98916487]
[1694011683529,0.0217,25641.0,25640.0,4.99728487]
[1694011683740,0.0217,25641.0,25640.0,4.99692487]
[1694011683948,0.0217,25641.0,25640.0,4.99704487]
[1694011684172,0.0237,25641.0,25640.0,5.12599454]
[1694011684376,0.0237,25641.0,25640.0,5.28529454]
[1694011684585,0.0237,25641.0,25640.0,5.22958307]
[1694011684793,0.0237,25641.0,25640.0,5.05236307]
[1694011684995,0.0237,25641.0,25640.0,5.03946307]
[1694011685202,0.0237,25641.0,25640.0,5.03940307]
[1694011685415,0.0237,25641.0,25640.0,5.06016307]
[1694011685618,0.0237,25641.0,25640.0,5.12823454]
[1694011685823,0.0237,25641.0,25640.0,5.31109454]
[1694011686034,0.0237,25641.0,25640.0,5.38077153]
[1694011686237,0.0237,25641.0,25640.0,5.35677153]
[1694011686442,0.0237,25641.0,25640.0,5.20881153]
[1694011686648,0.0237,25641.0,25640.0,5.20941153]
[1694011687039,0.0237,25641.0,25640.0,5.14861454]
[1694011687251,0.0237,25641.0,25640.0,5.37121454]
[1694011687487,0.0237,25641.0,25640.0,5.37673454]
[1694011687687,0.0237,25641.0,25640.0,5.37793454]
[1694011687895,0.0237,25641.0,25640.0,5.37865454]
[1694011688075,0.0197,25642.0,25641.0,0.5892]
[1694011688291,0.0197,25642.0,25641.0,4.80549054]
[1694011688500,0.0197,25646.0,25645.0,2.808837]
[1694011688712,0.0197,25646.0,25645.0,3.83584038]
[1694011688921,0.0197,25646.0,25645.0,5.36484027]
[1694011689125,0.0197,25646.0,25645.0,5.43744116]
[1694011689332,0.0197,25646.0,25645.0,5.81778643]
[1694011689562,0.0197,25646.0,25645.0,5.81736643]
[1694011689782,0.0197,25646.0,25645.0,5.82156643]
[1694011689996,0.0197,25646.0,25645.0,6.01258554]
[1694011690231,0.0197,25646.0,25645.0,5.40821563]
[1694011690452,0.0197,25646.0,25645.0,5.97114273]
[1694011690681,1e-08,25646.0,25645.0,5.95338273]
[1694011690890,1e-08,25646.0,25645.0,5.98414329]
[1694011691088,1e-08,25646.0,25645.0,5.66063563]
[1694011691311,1e-08,25646.0,25645.0,5.70135563]
[1694011691516,1e-08,25646.0,25645.0,5.73955563]
[1694011691729,1e-08,25646.0,25645.0,5.97614329]
[1694011691955,1e-08,25646.0,25645.0,4.12533114]
[1694011692153,1e-08,25646.0,25645.0,3.72864643]
[1694011692446,1e-08,25646.0,25645.0,3.68013187]
[1694011692647,1e-08,25646.0,25645.0,3.56708294]
[1694011692847,1e-08,25646.0,25645.0,2.27120499]
[1694011693055,1e-08,25646.0,25645.0,1.46886325]
[1694011693286,1e-08,25646.0,25645.0,0.74360583]
[1694011693505,0.05985689,25646.0,25645.0,0.41164527]
[1694011693681,0.08952629,25646.0,25645.0,0.41164527]
[1694011693946,0.08952629,25646.0,25645.0,0.025]
[1694011694158,0.08952629,25646.0,25645.0,0.05]
[1694011694781,0.08952629,25646.0,25644.0,1.55978]
[1694011694987,0.08952629,25646.0,25644.0,1.94642527]
[1694011695191,0.08952629,25646.0,25645.0,1.110879]
[1694011695399,0.02966941,25646.0,25645.0,1.865758]
[1694011695605,0.02966941,25646.0,25645.0,2.36130519]
[1694011695812,0.02966941,25646.0,25645.0,0.314]
[1694011696056,0.30708083,25646.0,25643.0,0.3]
[1694011696298,0.02,25645.0,25642.0,0.3]
[1694011696516,0.02,25645.0,25644.0,0.014]
[1694011696725,0.99453711,25645.0,25644.0,0.014]
[1694011696938,2.59193433,25645.0,25644.0,0.014]
[1694011697378,0.04,25641.0,25640.0,0.0001]
[1694011697597,0.2027,25641.0,25640.0,0.0001]
[1694011697819,0.2027,25641.0,25640.0,0.07188545]
[1694011697820,0.04,25641.0,25640.0,0.07188545]
[1694011698038,0.04,25641.0,25640.0,0.0001]
[1694011698248,0.04,25641.0,25640.0,0.09026277]
[1694011698880,0.042,25641.0,25640.0,0.0011]
[1694011699069,0.042,25641.0,25640.0,0.07008205]
[1694011699316,0.042,25641.0,25640.0,0.0011]
[1694011699523,0.042,25641.0,25640.0,0.09374622]
[1694011700151,0.04,25641.0,25640.0,0.09274622]
[1694011700503,0.04,25641.0,25640.0,0.09874622]
[1694011701088,0.82,25641.0,25640.0,0.0061]
[1694011701441,2.39595249,25641.0,25640.0,0.0061]
[1694011701998,1.61595249,25641.0,25640.0,0.0031]
[1694011702207,1.61595249,25641.0,25640.0,0.0001]
[1694011702634,1.62095249,25641.0,25640.0,0.0001]
[1694011702810,1.61595249,25641.0,25640.0,0.0001]
[1694011703411,2.40995249,25641.0,25640.0,0.0021]
[1694011703623,0.054,25641.0,25640.0,0.0021]
[1694011703823,0.054,25641.0,25640.0,0.07405851]
[1694011704623,0.056,25641.0,25640.0,0.07405851]
[1694011704823,0.042,25641.0,25640.0,0.07205851]
[1694011705032,0.04,25641.0,25640.0,0.07205851]
[1694011705231,0.04,25641.0,25640.0,0.07405851]
[1694011705453,0.054,25641.0,25640.0,0.46070378]
[1694011706168,0.04,25641.0,25640.0,0.38674527]
[1694011706326,0.045,25641.0,25640.0,0.38674527]
[1694011707150,0.047,25641.0,25640.0,0.38674527]
[1694011707372,0.25227094,25641.0,25640.0,0.0001]
[1694011707578,1.03227094,25641.0,25640.0,0.0001]
[1694011707779,1.03227094,25641.0,25635.0,0.00457217]
[1694011707780,0.04,25639.0,25635.0,0.00457217]
[1694011707998,0.31735811,25638.0,25635.0,0.39121744]
[1694011708457,0.1627,25638.0,25635.0,0.39121744]
[1694011708831,0.04,25639.0,25636.0,0.00462999]
[1694011709029,0.04,25639.0,25637.0,1.560244]
[1694011709259,0.04,25639.0,25638.0,0.38664527]
[1694011709395,0.04,25639.0,25635.0,0.780168]
[1694011709600,0.041,25639.0,25636.0,0.38664527]
[1694011709969,0.04,25639.0,25636.0,0.38664527]
[1694011710172,0.06424578,25639.0,25635.0,0.00411079]
[1694011710320,0.04,25636.0,25635.0,0.00411079]
[1694011710721,0.04,25636.0,25633.0,0.780242]
[1694011710722,0.04,25636.0,25632.0,0.0001]
[1694011710723,0.12,25633.0,25632.0,0.0001]
[1694011710954,0.12,25633.0,25626.0,0.00406637]
[1694011710955,0.04,25627.0,25626.0,0.00406637]
[1694011711218,0.97508411,25627.0,25626.0,0.00406637]
[1694011711375,1.13778411,25627.0,25626.0,0.00406637]
[1694011711579,1.13778411,25627.0,25621.0,1.3700133]
[1694011711580,1.16735545,25627.0,25621.0,1.3700133]
[1694011711779,0.15465811,25626.0,25622.0,0.38664527]
[1694011711985,0.19465811,25626.0,25622.0,0.38664527]
[1694011712136,0.19465811,25626.0,25621.0,1.3700133]
[1694011712339,0.19465811,25626.0,25620.0,0.0001]
[1694011712340,0.04,25623.0,25620.0,0.0001]
[1694011712574,0.19465811,25623.0,25620.0,1.561344]
[1694011712817,0.19465811,25623.0,25620.0,0.780722]
[1694011712999,0.04,25623.0,25620.0,0.780722]
[1694011713403,0.04,25623.0,25622.0,0.002]
[1694011713606,0.04,25623.0,25621.0,0.780596]
[1694011714050,0.041,25623.0,25621.0,1.031196]
[1694011715521,0.041,25623.0,25621.0,0.2506]
[1694011715734,0.04,25623.0,25621.0,1.031206]
[1694011715942,0.04,25623.0,25621.0,1.41785127]
[1694011716148,0.041,25623.0,25621.0,1.41785127]
[1694011716357,0.041,25623.0,25622.0,0.38664527]
[1694011716567,0.04,25626.0,25622.0,2.36320327]
[1694011716783,0.001,25623.0,25622.0,1.72300238]
[1694011716993,0.001,25623.0,25622.0,0.70964527]
[1694011717609,0.001,25623.0,25622.0,0.68664527]
[1694011717610,0.02707112,25623.0,25622.0,0.68664527]
[1694011718235,0.02707112,25623.0,25622.0,0.325]
[1694011718850,0.02707112,25623.0,25622.0,2.27280327]
[1694011719062,0.02707112,25623.0,25622.0,2.35020327]
[1694011719270,0.02707112,25623.0,25622.0,2.35590327]
[1694011719480,0.02707112,25623.0,25622.0,2.33988327]
[1694011719689,0.02707112,25623.0,25622.0,2.34306327]
[1694011719906,0.02707112,25623.0,25622.0,2.33856327]
[1694011720121,0.02707112,25623.0,25622.0,0.71164527]
[1694011720331,0.02807112,25623.0,25622.0,0.73664527]
[1694011721543,0.02807112,25623.0,25622.0,0.35]
[1694011722358,0.02807112,25623.0,25622.0,1.130579]
[1694011722566,0.02807112,25623.0,25622.0,2.691737]
[1694011722774,0.001,25623.0,25622.0,3.07838227]
[1694011722977,0.001,25623.0,25622.0,2.29780327]
[1694011723593,0.02802679,25623.0,25622.0,2.29780327]
[1694011723805,0.02802679,25623.0,25622.0,2.59982641]
[1694011724018,0.02802679,25623.0,25622.0,3.18484227]
[1694011724232,0.021,25623.0,25622.0,2.38680327]
[1694011724436,0.021,25623.0,25622.0,2.32080327]
[1694011724636,0.0480385,25623.0,25622.0,2.32080327]
[1694011725050,0.0280385,25623.0,25622.0,2.32080327]
[1694011725256,0.0280385,25623.0,25622.0,2.39388327]
[1694011725461,0.0280385,25623.0,25622.0,2.39526327]
[1694011725664,0.0280385,25623.0,25622.0,2.39364327]
[1694011725872,0.0280385,25623.0,25622.0,2.39076327]
[1694011726089,0.0280385,25623.0,25622.0,2.38872327]
[1694011726306,0.0280385,25623.0,25622.0,2.38692327]
[1694011726507,0.0280385,25623.0,25622.0,2.38674327]
[1694011726684,0.0280385,25623.0,25622.0,2.38662327]
[1694011726887,0.0280385,25623.0,25622.0,2.32080327]
[1694011727091,0.0280385,25623.0,25622.0,0.73664527]
[1694011727292,0.0280385,25623.0,25622.0,0.35]
[1694011728647,0.0280385,25623.0,25622.0,1.911158]
[1694011728852,0.0280385,25623.0,25622.0,1.90651995]
[1694011729066,0.0280385,25623.0,25622.0,3.96480322]
[1694011729278,0.0280385,25623.0,25622.0,2.87644227]
[1694011729486,0.0280385,25623.0,25622.0,2.08884327]
[1694011729695,0.0280385,25623.0,25622.0,2.02080327]
[1694011730116,0.0280385,25623.0,25622.0,3.58067927]
[1694011730323,0.0280385,25623.0,25622.0,3.86097927]
[1694011730530,0.001,25623.0,25622.0,4.24456454]
[1694011730744,0.001,25623.0,25622.0,1.32006227]
[1694011730958,0.001,25623.0,25622.0,2.31952127]
[1694011731177,0.001,25623.0,25622.0,2.01952127]
[1694011731354,0.001,25623.0,25622.0,0.45836327]
[1694011731566,0.03401257,25623.0,25622.0,0.45836327]
[1694011731766,0.03401257,25623.0,25622.0,0.43536327]
[1694011732179,0.03401257,25623.0,25622.0,0.048718]
[1694011733772,0.03401257,25623.0,25622.0,1.99652127]
[1694011733980,0.03401257,25623.0,25622.0,0.048718]
[1694011734408,0.07138526,25623.0,25622.0,0.068718]
[1694011735062,2.45302926,25623.0,25622.0,0.048718]
[1694011735486,0.89193326,25623.0,25622.0,0.048718]
[1694011735698,1.67248126,25623.0,25622.0,0.048718]
[1694011735902,2.45302926,25623.0,25622.0,0.048718]
[1694011736114,2.49302926,25623.0,25622.0,0.025]
[1694011736550,2.49302926,25623.0,25622.0,0.04]
[1694011736752,2.49202926,25623.0,25622.0,0.015]
[1694011736957,3.27257726,25623.0,25622.0,0.015]
[1694011737176,3.27257726,25623.0,25620.0,0.0001]
[1694011737380,0.1627,25622.0,25615.0,0.81163595]
[1694011737600,0.1627,25622.0,25616.0,0.38664527]
[1694011737601,0.04,25619.0,25616.0,0.38664527]
[1694011737792,0.19465811,25619.0,25616.0,0.38664527]
[1694011738000,0.97533011,25619.0,25616.0,0.38664527]
[1694011738199,0.04,25619.0,25616.0,0.38664527]
[1694011738820,0.04,25619.0,25616.0,1.23370527]
[1694011739034,0.04,25619.0,25617.0,0.07806]
[1694011739238,0.04,25619.0,25618.0,0.38664527]
[1694011739440,0.04,25619.0,25618.0,1.16734627]
[1694011739658,0.04,25619.0,25618.0,1.16234627]
[1694011739864,0.04,25619.0,25618.0,0.9669715]
[1694011740068,0.04,25619.0,25618.0,1.7476725]
[1694011740069,0.041,25619.0,25618.0,1.7476725]
[1694011740301,0.04,25619.0,25618.0,2.79908685]
[1694011740507,0.04,25619.0,25618.0,2.81054685]
[1694011740719,0.041,25619.0,25618.0,2.82900685]
[1694011740922,0.041,25619.0,25618.0,2.6525735]
[1694011741121,0.001,25619.0,25618.0,2.6517335]
[1694011741322,0.04,25620.0,25618.0,3.4385545]
[1694011741529,0.001,25619.0,25618.0,3.4625945]
[1694011741742,0.001,25619.0,25618.0,3.60638256]
[1694011741954,0.001,25619.0,25618.0,3.88034256]
[1694011742172,0.001,25619.0,25618.0,3.71948256]
[1694011742391,0.001,25619.0,25618.0,3.71348256]
[1694011742632,0.001,25619.0,25618.0,2.6728335]
[1694011742837,0.001,25619.0,25618.0,1.8206725]
[1694011743266,0.03213797,25619.0,25618.0,1.8864925]
[1694011743470,0.001,25619.0,25618.0,1.8897925]
[1694011743678,0.001,25619.0,25618.0,2.6700135]
[1694011743905,0.001,25619.0,25618.0,2.6698935]
[1694011744112,0.001,25619.0,25618.0,2.6709135]
[1694011744315,0.001,25619.0,25618.0,2.6713335]
[1694011744561,0.001,25619.0,25618.0,2.6755335]
[1694011744776,0.001,25619.0,25618.0,2.6959335]
[1694011744994,0.001,25619.0,25618.0,3.6453945]
[1694011745215,0.001,25619.0,25618.0,3.6448545]
[1694011745435,0.001,25619.0,25618.0,3.6164945]
[1694011745641,0.001,25619.0,25618.0,3.6163745]
[1694011745845,0.001,25619.0,25618.0,3.6170345]
[1694011746057,0.001,25619.0,25618.0,1.8620325]
[1694011746269,0.001,25619.0,25618.0,0.9919715]
[1694011746707,0.03211644,25619.0,25618.0,0.9919715]
[1694011746924,0.001,25619.0,25618.0,1.7726725]
[1694011747147,0.001,25619.0,25618.0,2.6197935]
[1694011747353,0.001,25619.0,25618.0,2.6242935]
[1694011747569,0.001,25619.0,25618.0,2.6306535]
[1694011747801,0.001,25619.0,25618.0,2.6231535]
[1694011748016,0.001,25619.0,25618.0,2.6298135]
[1694011748222,0.001,25619.0,25618.0,2.6463935]
[1694011748372,0.001,25619.0,25618.0,2.6447735]
[1694011748584,0.001,25619.0,25618.0,2.6679135]
[1694011748803,0.001,25619.0,25618.0,2.6013735]
[1694011749171,0.001,25619.0,25618.0,2.6709735]
[1694011749372,0.001,25619.0,25618.0,2.6013735]
[1694011749581,0.001,25619.0,25618.0,1.0169715]
[1694011749799,0.001,25619.0,25618.0,0.05]
[1694011750012,0.09079927,25619.0,25618.0,0.05]
[1694011750227,0.12190415,25619.0,25618.0,0.05]
[1694011750441,0.12190415,25619.0,25618.0,0.025]
[1694011751060,0.12190415,25619.0,25618.0,0.05]
[1694011751814,0.12090415,25619.0,25615.0,0.03086195]
[1694011752017,0.27556226,25619.0,25614.0,2.59243599]
[1694011752218,0.27556226,25619.0,25618.0,0.01]
[1694011752450,0.12090415,25619.0,25618.0,0.006]
[1694011752713,0.07110488,25619.0,25618.0,0.006]
[1694011752919,1.87914488,25619.0,25618.0,0.006]
[1694011753128,2.67581488,25619.0,25618.0,0.006]
[1694011753272,2.68881488,25619.0,25618.0,0.007]
[1694011753475,2.68881488,25619.0,25618.0,0.001]
[1694011753730,0.02,25617.0,25614.0,0.01989699]
[1694011753924,0.17465811,25617.0,25614.0,0.01989699]
[1694011754168,0.13063902,25616.0,25612.0,1.40617204]
[1694011754372,0.13063902,25616.0,25612.0,1.79281731]
[1694011754373,0.28529713,25616.0,25612.0,1.79281731]
[1694011754802,0.04,25613.0,25612.0,1.79281731]
[1694011755007,0.04,25613.0,25612.0,1.81581731]
[1694011755624,0.02,25615.0,25612.0,1.06294531]
[1694011755829,0.04,25613.0,25612.0,1.06294531]
[1694011756009,0.04,25613.0,25612.0,1.04994531]
[1694011756216,0.04,25613.0,25612.0,0.44964527]
[1694011756217,0.042,25613.0,25612.0,0.44964527]
[1694011756418,0.07022517,25613.0,25612.0,0.44964527]
[1694011756593,0.07022517,25613.0,25612.0,1.23052827]
[1694011757146,0.07022517,25613.0,25612.0,1.99641127]
[1694011757610,0.07022517,25613.0,25612.0,1.21552827]
[1694011757813,0.07122517,25613.0,25612.0,1.24052827]
[1694011759537,0.03122517,25613.0,25612.0,3.21759343]
[1694011759781,0.03122517,25613.0,25612.0,4.30778053]
[1694011759982,0.03122517,25613.0,25612.0,5.08530353]
[1694011759983,0.003,25613.0,25612.0,5.08530353]
[1694011760177,0.003,25613.0,25612.0,5.08050353]
[1694011760407,0.003,25613.0,25612.0,5.04969469]
[1694011760584,0.003,25613.0,25612.0,5.05365469]
[1694011760758,0.003,25613.0,25612.0,5.06289469]
[1694011760936,0.003,25613.0,25612.0,5.06301469]
[1694011761141,0.003,25613.0,25612.0,5.06721469]
[1694011761348,0.003,25613.0,25612.0,5.06397469]
[1694011761545,0.003,25613.0,25612.0,5.90125769]
[1694011761745,0.1862526,25621.0,25612.0,5.90125769]
[1694011761746,0.04,25621.0,25614.0,0.4892]
[1694011761973,0.04,25621.0,25619.0,0.1627]
[1694011762331,0.04,25621.0,25620.0,1.97092527]
[1694011762529,0.04,25621.0,25619.0,0.38664527]
[1694011762731,0.07016015,25621.0,25619.0,1.16731227]
[1694011762950,0.07016015,25621.0,25620.0,0.38664527]
[1694011763165,0.07016015,25621.0,25620.0,1.25844527]
[1694011763344,0.07016015,25621.0,25620.0,1.25598527]
[1694011763479,0.07016015,25621.0,25620.0,2.81954527]
[1694011763684,0.04,25621.0,25620.0,2.75156527]
[1694011763884,0.04,25621.0,25620.0,2.82044527]
[1694011764083,0.19671646,25625.0,25620.0,3.60090527]
[1694011764369,0.04,25623.0,25621.0,0.17765811]
[1694011764574,0.04,25623.0,25622.0,2.341719]
[1694011764700,0.04,25623.0,25622.0,2.72836427]
[1694011765130,0.04,25623.0,25622.0,1.94779127]
[1694011765717,0.04,25623.0,25622.0,2.72837027]
[1694011766253,0.03400753,25624.0,25622.0,2.80385027]
[1694011766457,0.05400753,25624.0,25622.0,3.58544927]
[1694011766656,0.04,25625.0,25623.0,0.27456]
[1694011766885,0.04,25625.0,25624.0,2.72819927]
[1694011767042,0.04,25625.0,25624.0,2.82217927]
[1694011767238,0.03414937,25625.0,25624.0,4.00098254]
[1694011767442,0.07414937,25625.0,25624.0,3.99930254]
[1694011767647,0.04,25625.0,25624.0,3.60749727]
[1694011767892,0.03416237,25625.0,25624.0,3.60407727]
[1694011768091,0.03416237,25625.0,25624.0,3.60875727]
[1694011768290,0.04,25626.0,25624.0,3.33639508]
[1694011768489,0.04,25626.0,25625.0,0.023]
[1694011768691,0.04,25626.0,25625.0,2.364461]
[1694011769105,0.04,25626.0,25625.0,2.354461]
[1694011769274,0.04,25626.0,25625.0,2.341461]
[1694011769702,0.13273093,25626.0,25625.0,2.341461]
[1694011770134,0.13273093,25626.0,25625.0,1.560974]
[1694011770335,0.13273093,25626.0,25625.0,0.780487]
[1694011770545,0.13273093,25626.0,25625.0,0.799487]
[1694011770724,0.13273093,25626.0,25625.0,0.019]
[1694011770725,0.1790964,25626.0,25625.0,0.019]
[1694011770893,0.1790964,25626.0,25624.0,0.780506]
[1694011770894,0.51617654,25626.0,25624.0,0.780506]
[1694011771117,0.51617654,25626.0,25625.0,0.023]
[1694011771293,0.37708014,25626.0,25625.0,0.023]
[1694011771497,0.33129641,25626.0,25625.0,0.023]
[1694011771685,0.17967814,25626.0,25625.0,0.780487]
[1694011772308,0.17967814,25626.0,25625.0,1.48392383]
[1694011772309,0.27280027,25626.0,25625.0,1.48392383]
[1694011772537,0.09312213,25627.0,25625.0,2.26441083]
[1694011772730,0.15967814,25628.0,25626.0,0.40964527]
[1694011772731,0.23280027,25628.0,25626.0,0.40964527]
[1694011772923,0.09312213,25628.0,25626.0,3.77727327]
[1694011773143,0.09312213,25628.0,25627.0,0.08478]
[1694011773344,0.09312213,25628.0,25627.0,3.61654927]
[1694011773624,0.09312213,25628.0,25627.0,3.97142857]
[1694011773765,0.09312213,25628.0,25627.0,3.58824927]
[1694011773970,0.27280027,25629.0,25627.0,3.52134927]
[1694011774193,0.27280027,25629.0,25628.0,0.023]
[1694011774194,0.13312213,25629.0,25628.0,0.023]
[1694011774414,0.13312213,25629.0,25628.0,1.97043727]
[1694011775355,0.13312213,25629.0,25628.0,2.75083327]
[1694011775595,0.13512213,25629.0,25628.0,2.77583327]
[1694011775771,0.13512213,25629.0,25628.0,2.366188]
[1694011775970,0.042,25629.0,25628.0,2.366188]
[1694011776388,0.13612213,25629.0,25628.0,0.05]
[1694011776601,0.18267814,25629.0,25628.0,0.05]
[1694011777032,0.27569447,25629.0,25628.0,0.05]
[1694011777240,0.13601633,25629.0,25628.0,0.830396]
[1694011777668,0.043,25629.0,25628.0,1.610792]
[1694011779304,0.043,25629.0,25628.0,2.391188]
[1694011780699,0.07601713,25629.0,25628.0,2.391188]
[1694011781761,0.18270812,25629.0,25628.0,0.05]
[1694011782379,0.14270812,25629.0,25628.0,0.05]
[1694011782595,0.18270812,25629.0,25628.0,0.05]
[1694011785725,0.07601713,25629.0,25628.0,0.05]
[1694011786755,0.16903346,25629.0,25628.0,0.05]
[1694011787349,0.960965,25629.0,25628.0,0.05]
[1694011787558,1.11657198,25629.0,25628.0,0.05]
[1694011788171,0.28950307,25629.0,25628.0,0.05]
[1694011788377,0.16699136,25629.0,25628.0,0.025]
[1694011788581,0.09801713,25629.0,25628.0,0.027]
[1694011789010,0.09701713,25629.0,25627.0,1.48578291]
[1694011789215,0.09701713,25629.0,25627.0,2.26619891]
[1694011789216,0.23617462,25629.0,25627.0,2.26619891]
[1694011789418,0.23117462,25629.0,25628.0,0.002]
[1694011789597,0.21217462,25629.0,25627.0,2.26619891]
[1694011789834,0.04,25628.0,25627.0,2.26619891]
[1694011790455,0.07092146,25628.0,25627.0,2.26719891]
[1694011790669,0.07092146,25628.0,25627.0,3.50609018]
[1694011790848,0.07092146,25628.0,25627.0,3.67801018]
[1694011791114,0.04,25628.0,25627.0,3.66733018]
[1694011791319,0.04,25628.0,25627.0,3.66715018]
[1694011791523,0.04,25628.0,25627.0,3.66529018]
[1694011791728,0.041,25628.0,25627.0,3.67563018]
[1694011791933,0.041,25628.0,25627.0,3.60807018]
[1694011791934,0.07188419,25628.0,25627.0,3.60807018]
[1694011792762,0.07188419,25628.0,25627.0,3.60707018]
[1694011793135,0.07188419,25628.0,25627.0,2.82664418]
[1694011793965,0.07188419,25628.0,25627.0,0.71646391]
[1694011794167,0.07188419,25628.0,25627.0,1.49688991]
[1694011794370,0.07188419,25628.0,25627.0,1.50488991]
[1694011794575,0.07188419,25628.0,25627.0,2.28531591]
[1694011796073,0.03188419,25628.0,25627.0,3.45238718]
[1694011796279,0.03188419,25628.0,25627.0,3.80429716]
[1694011796483,0.03188419,25628.0,25627.0,3.79133716]
[1694011796660,0.001,25628.0,25627.0,3.78965716]
[1694011796865,0.001,25628.0,25627.0,3.78647716]
[1694011797071,0.001,25628.0,25627.0,3.78551716]
[1694011797306,0.001,25628.0,25627.0,3.77993716]
[1694011797508,0.001,25628.0,25627.0,3.77729716]
[1694011797658,0.001,25628.0,25627.0,3.56010718]
[1694011797866,0.001,25628.0,25627.0,3.56640718]
[1694011798071,0.001,25628.0,25627.0,3.55908718]
[1694011798301,0.001,25628.0,25627.0,3.55752718]
[1694011798458,0.001,25628.0,25627.0,3.55764718]
[1694011798659,0.001,25628.0,25627.0,3.55908718]
[1694011798860,0.001,25628.0,25627.0,3.55902718]
[1694011799055,0.001,25628.0,25627.0,3.55884718]
[1694011799344,0.001,25628.0,25627.0,3.55920718]
[1694011799551,0.001,25628.0,25627.0,3.57030718]
[1694011799732,0.001,25628.0,25627.0,3.57084718]
[1694011799966,0.001,25628.0,25627.0,3.57048718]
[1694011800187,0.001,25628.0,25627.0,3.57030718]
[1694011800387,0.001,25628.0,25627.0,3.57144718]
[1694011800591,0.001,25628.0,25627.0,3.56412718]
[1694011801004,0.001,25628.0,25627.0,3.56586718]
[1694011801160,0.001,25628.0,25627.0,3.56592718]
[1694011801366,0.001,25628.0,25627.0,3.56478718]
[1694011801512,0.001,25628.0,25627.0,3.56460718]
[1694011801716,0.001,25628.0,25627.0,3.56250718]
[1694011801922,0.001,25628.0,25627.0,3.54822718]
[1694011802198,0.001,25628.0,25627.0,3.54864718]
[1694011802426,0.001,25628.0,25627.0,3.54858718]
[1694011802579,0.001,25628.0,25627.0,3.93619245]
[1694011802776,0.001,25628.0,25627.0,3.95449245]
[1694011802980,0.001,25628.0,25627.0,3.95395245]
[1694011803180,0.001,25628.0,25627.0,3.95593245]
[1694011803384,0.001,25628.0,25627.0,3.95479245]
[1694011803649,0.001,25628.0,25627.0,3.95509245]
[1694011803853,0.001,25628.0,25627.0,2.36739591]
[1694011804030,0.09136974,25628.0,25627.0,2.28531591]
[1694011804279,0.09136974,25628.0,25627.0,0.0191]
[1694011804456,0.1222693,25628.0,25627.0,0.0191]
[1694011804628,0.1422693,25628.0,25627.0,0.0191]
[1694011805054,0.1422693,25628.0,25627.0,0.799526]
[1694011805229,0.1422693,25628.0,25627.0,1.579952]
[1694011805657,0.05189956,25628.0,25627.0,2.74702327]
[1694011805862,0.05189956,25628.0,25627.0,2.77002327]
[1694011806065,0.14487379,25628.0,25627.0,2.77002327]
[1694011806263,0.05189956,25628.0,25627.0,3.93709454]
[1694011806467,0.05189956,25628.0,25627.0,3.62574927]
[1694011806665,0.05189956,25628.0,25627.0,3.55044927]
[1694011806896,0.001,25628.0,25627.0,3.55044927]
[1694011807201,0.001,25628.0,25627.0,3.81436927]
[1694011807324,0.001,25628.0,25627.0,3.81388927]
[1694011807525,0.001,25628.0,25627.0,3.81352927]
[1694011807745,0.001,25628.0,25627.0,3.81364927]
[1694011807944,0.001,25628.0,25627.0,3.81316927]
[1694011808260,0.001,25628.0,25627.0,4.19975454]
[1694011808463,0.001,25628.0,25627.0,4.19933454]
[1694011808659,0.001,25628.0,25627.0,4.19909454]
[1694011808860,0.001,25628.0,25627.0,4.63601454]
[1694011809080,0.001,25628.0,25627.0,4.64051454]
[1694011809283,0.001,25628.0,25627.0,5.15880164]
[1694011809626,0.001,25628.0,25627.0,5.32914464]
[1694011809859,0.37570995,25633.0,25627.0,5.29942464]
[1694011810061,0.09297423,25631.0,25629.0,0.4092]
[1694011810252,0.09297423,25631.0,25630.0,3.94018527]
[1694011810450,0.09297423,25631.0,25630.0,3.60376527]
[1694011810625,0.09297423,25631.0,25630.0,3.60298527]
[1694011810834,0.09297423,25631.0,25630.0,3.60304527]
[1694011811058,0.09297423,25631.0,25630.0,4.02034527]
[1694011811261,0.09297423,25631.0,25630.0,4.03348527]
[1694011811601,0.09297423,25631.0,25630.0,4.03300527]
[1694011811776,0.09297423,25631.0,25630.0,4.03294527]
[1694011811976,0.09297423,25631.0,25630.0,4.03252527]
[1694011812133,0.09297423,25631.0,25630.0,4.03102527]
[1694011812334,0.09297423,25631.0,25630.0,3.62344527]
[1694011812535,0.09297423,25631.0,25630.0,3.59812527]